fUSD/lending_fUSD_20240301
["ID","MTS","AMOUNT","RATE_DAILY","PERIOD"]
[315943416,1709296248237,-500.0,0.00022148,2]
[315943417,1709296248249,-500.0,0.00022148,2]
[315943418,1709296248261,-500.0,0.00022148,2]
[315943419,1709296248273,-587.96,0.00022148,2]
[315943420,1709296248302,-500.0,0.00022148,2]
[315943421,1709296248314,-500.0,0.00022148,2]
[315943422,1709296248325,-500.0,0.00022148,2]
[315943423,1709296248338,-500.0,0.00022148,2]
[315943424,1709296248350,-500.0,0.00022148,2]
[315943425,1709296248363,-500.0,0.00022148,2]
[315943426,1709296248375,-500.0,0.00022148,2]
[315943427,1709296248387,-500.0,0.00022148,2]
[315943428,1709296248400,-500.0,0.00022148,2]
[315943429,1709296248412,-506.9,0.00022148,2]
[315943430,1709296248424,-1134.52,0.00022148,2]
[315943431,1709296248436,-500.0,0.00022148,2]
[315943432,1709296248449,-1582.41,0.00022148,2]
[315943433,1709296248461,-500.0,0.00022148,2]
[315943434,1709296248473,-1032.95,0.00022148,2]
[315943435,1709296248485,-500.0,0.00022148,2]
[315943436,1709296248497,-500.0,0.00022148,2]
[315943437,1709296248508,-500.0,0.00022148,2]
[315943438,1709296248519,-500.0,0.00022148,2]
[315943439,1709296248531,-500.0,0.00022148,2]
[315943440,1709296248544,-500.0,0.00022148,2]
[315943441,1709296248556,-500.0,0.00022148,2]
[315943442,1709296248566,-500.0,0.00022148,2]
[315943443,1709296248579,-1095.22,0.00022148,2]
[315943444,1709296248591,-500.0,0.00022148,2]
[315943445,1709296248603,-509.98192901,0.00022148,2]
[315943446,1709296248614,-500.0,0.00022148,2]
[315943447,1709296248626,-500.0,0.00022148,2]
[315943448,1709296248638,-500.0,0.00022148,2]
[315943449,1709296248649,-269.3486643,0.00022148,2]
[315943450,1709296249204,-230.6513357,0.00022148,2]
[315943451,1709296249215,-500.0,0.00022148,2]
[315943452,1709296249230,-500.0,0.00022148,2]
[315943453,1709296249241,-500.0,0.00022148,2]
[315943454,1709296249251,-500.0,0.00022148,2]
[315943455,1709296249262,-500.0,0.00022148,2]
[315943456,1709296249273,-500.0,0.00022148,2]
[315943457,1709296249283,-500.0,0.00022148,2]
[315943458,1709296249294,-500.0,0.00022148,2]
[315943459,1709296249305,-500.0,0.00022148,2]
[315943460,1709296249316,-500.0,0.00022148,2]
[315943461,1709296249327,-516.5,0.00022148,2]
[315943462,1709296249338,-2939.06982643,0.00022151,2]
[315943463,1709296249349,-38105.24070418,0.00022151,2]
[315943464,1709296249360,-9784.39535373,0.00022151,2]
[315943465,1709296249396,-12384.28953848,0.00022151,2]
[315943466,1709296249434,-41720.84371737,0.00022151,2]
[315943467,1709296249729,-2158.2476961,0.00022049,2]
[315943468,1709296249740,-97.05843992,0.00022151,2]
[315943469,1709296249751,-38493.33893316,0.00022151,2]
[315943470,1709296249762,-629.39,0.00022185,2]
[315943471,1709296249773,-250.0,0.000222,2]
[315943472,1709296249783,-150.0,0.000222,2]
[315943473,1709296249793,-2000.0,0.000222,2]
[315943474,1709296249803,-250.0,0.000222,2]
[315943475,1709296249814,-500.0,0.00022223,2]
[315943476,1709296249824,-500.0,0.00022223,2]
[315943477,1709296249834,-500.0,0.00022223,2]
[315943478,1709296249845,-500.0,0.00022223,2]
[315943479,1709296249855,-500.0,0.00022223,2]
[315943480,1709296249866,-500.0,0.00022223,2]
[315943481,1709296249878,-500.0,0.00022223,2]
[315943482,1709296249889,-500.0,0.00022223,2]
[315943483,1709296249899,-500.0,0.00022223,2]
[315943484,1709296249910,-500.0,0.00022223,2]
[315943485,1709296249921,-500.0,0.00022223,2]
[315943486,1709296249930,-514.73351754,0.00022223,2]
[315943487,1709296249941,-500.0,0.00022223,2]
[315943488,1709296249951,-500.0,0.00022223,2]
[315943489,1709296249962,-500.0,0.00022223,2]
[315943490,1709296249973,-500.0,0.00022223,2]
[315943491,1709296249984,-500.0,0.00022223,2]
[315943492,1709296249994,-500.0,0.00022223,2]
[315943493,1709296250006,-500.0,0.00022223,2]
[315943494,1709296250017,-500.0,0.00022223,2]
[315943495,1709296250028,-500.0,0.00022223,2]
[315943496,1709296250048,-514.25635748,0.00022223,2]
[315943497,1709296250065,-500.0,0.00022223,2]
[315943498,1709296250078,-500.0,0.00022223,2]
[315943499,1709296250090,-500.0,0.00022223,2]
[315943500,1709296250103,-500.0,0.00022223,2]
[315943501,1709296250115,-500.0,0.00022223,2]
[315943502,1709296250128,-425.1395702,0.00022223,2]
[315943503,1709296250141,-500.0,0.00022223,2]
[315943504,1709296250154,-500.0,0.00022223,2]
[315943505,1709296250167,-500.0,0.00022223,2]
[315943506,1709296250179,-500.0,0.00022223,2]
[315943507,1709296250192,-535.6295821,0.00022223,2]
[315943508,1709296250204,-500.0,0.00022223,2]
[315943509,1709296250716,-500.0,0.00022223,2]
[315943510,1709296250740,-500.0,0.00022223,2]
[315943511,1709296250760,-553.42740454,0.00022223,2]
[315943512,1709296250770,-500.0,0.00022223,2]
[315943513,1709296250779,-500.0,0.00022223,2]
[315943514,1709296250789,-500.0,0.00022223,2]
[315943515,1709296250798,-500.0,0.00022223,2]
[315943516,1709296250808,-500.0,0.00022223,2]
[315943517,1709296250818,-500.0,0.00022223,2]
[315943518,1709296250828,-500.0,0.00022223,2]
[315943519,1709296250837,-500.0,0.00022223,2]
[315943520,1709296250846,-500.0,0.00022223,2]
[315943521,1709296250861,-500.0,0.00022223,2]
[315943522,1709296250870,-618.77,0.00022223,2]
[315943523,1709296250879,-500.0,0.00022223,2]
[315943524,1709296250891,-500.0,0.00022223,2]
[315943525,1709296250901,-500.0,0.00022223,2]
[315943526,1709296250911,-500.0,0.00022223,2]
[315943527,1709296250921,-527.88008241,0.00022223,2]
[315943528,1709296250930,-500.0,0.00022223,2]
[315943529,1709296250939,-500.0,0.00022223,2]
[315943530,1709296250949,-500.0,0.00022223,2]
[315943531,1709296250959,-500.0,0.00022223,2]
[315943532,1709296250968,-500.0,0.00022223,2]
[315943533,1709296250978,-500.0,0.00022223,2]
[315943534,1709296250987,-519.02639767,0.00022223,2]
[315943535,1709296250996,-537.8058899,0.00022223,2]
[315943536,1709296251006,-500.0,0.00022223,2]
[315943537,1709296251016,-500.0,0.00022223,2]
[315943538,1709296251025,-500.0,0.00022223,2]
[315943539,1709296251034,-500.0,0.00022223,2]
[315943540,1709296251044,-500.0,0.00022223,2]
[315943541,1709296251053,-500.0,0.00022223,2]
[315943542,1709296251062,-500.0,0.00022223,2]
[315943543,1709296251071,-500.0,0.00022223,2]
[315943544,1709296251081,-500.0,0.00022223,2]
[315943545,1709296251090,-500.0,0.00022223,2]
[315943546,1709296251099,-441.99370472,0.00022223,2]
[315943547,1709296251109,-500.0,0.00022223,2]
[315943548,1709296251118,-500.0,0.00022223,2]
[315943549,1709296251128,-500.0,0.00022223,2]
[315943550,1709296251138,-504.59495995,0.00022223,2]
[315943551,1709296251150,-500.0,0.00022223,2]
[315943552,1709296251159,-500.0,0.00022223,2]
[315943553,1709296251170,-500.0,0.00022223,2]
[315943554,1709296251181,-500.0,0.00022223,2]
[315943555,1709296251191,-500.0,0.00022223,2]
[315943556,1709296251202,-500.0,0.00022223,2]
[315943557,1709296251212,-500.0,0.00022223,2]
[315943558,1709296251222,-500.0,0.00022223,2]
[315943559,1709296251232,-500.0,0.00022223,2]
[315943560,1709296251242,-500.0,0.00022223,2]
[315943561,1709296251252,-500.0,0.00022223,2]
[315943562,1709296251263,-271.77948241,0.00022223,2]
[315943563,1709296251273,-500.0,0.00022223,2]
[315943564,1709296251283,-500.0,0.00022223,2]
[315943565,1709296251292,-500.0,0.00022223,2]
[315943566,1709296251302,-500.0,0.00022223,2]
[315943567,1709296251312,-500.0,0.00022223,2]
[315943568,1709296251322,-243.28370415,0.00022223,2]
[315943569,1709296251332,-500.0,0.00022223,2]
[315943570,1709296251341,-500.0,0.00022223,2]
[315943571,1709296251351,-551.52064241,0.00022223,2]
[315943572,1709296251361,-500.0,0.00022223,2]
[315943573,1709296251371,-500.0,0.00022223,2]
[315943574,1709296251381,-500.0,0.00022223,2]
[315943575,1709296251391,-500.0,0.00022223,2]
[315943576,1709296251400,-500.0,0.00022223,2]
[315943577,1709296251410,-500.0,0.00022223,2]
[315943578,1709296251420,-500.0,0.00022223,2]
[315943579,1709296251430,-500.0,0.00022223,2]
[315943580,1709296251440,-274.88190051,0.00022223,2]
[315943581,1709296251449,-500.0,0.00022223,2]
[315943582,1709296251459,-500.0,0.00022223,2]
[315943583,1709296251468,-500.0,0.00022223,2]
[315943584,1709296251477,-505.3186342,0.00022223,2]
[315943585,1709296251487,-500.0,0.00022223,2]
[315943586,1709296251496,-260.73839757,0.00022223,2]
[315943587,1709296251506,-500.0,0.00022223,2]
[315943588,1709296251515,-500.0,0.00022223,2]
[315943589,1709296251525,-500.0,0.00022223,2]
[315943590,1709296251536,-500.0,0.00022223,2]
[315943591,1709296251545,-500.0,0.00022223,2]
[315943592,1709296251555,-500.0,0.00022223,2]
[315943593,1709296251564,-500.0,0.00022223,2]
[315943594,1709296251574,-500.0,0.00022223,2]
[315943595,1709296251585,-500.0,0.00022223,2]
[315943596,1709296251594,-500.0,0.00022223,2]
[315943597,1709296251604,-500.0,0.00022223,2]
[315943598,1709296251614,-500.0,0.00022223,2]
[315943599,1709296251628,-500.0,0.00022223,2]
[315943600,1709296251638,-500.0,0.00022223,2]
[315943601,1709296251649,-500.0,0.00022223,2]
[315943602,1709296251659,-500.0,0.00022223,2]
[315943603,1709296251670,-500.0,0.00022223,2]
[315943604,1709296251680,-500.0,0.00022223,2]
[315943605,1709296251699,-500.0,0.00022223,2]
[315943606,1709296251710,-500.0,0.00022223,2]
[315943607,1709296251720,-500.0,0.00022223,2]
[315943608,1709296251730,-500.0,0.00022223,2]
[315943609,1709296251740,-500.0,0.00022223,2]
[315943610,1709296251749,-500.0,0.00022223,2]
[315943611,1709296251759,-500.0,0.00022223,2]
[315943612,1709296251769,-500.0,0.00022223,2]
[315943613,1709296251779,-500.0,0.00022223,2]
[315943614,1709296251789,-500.0,0.00022223,2]
[315943615,1709296251799,-500.0,0.00022223,2]
[315943616,1709296251809,-500.0,0.00022223,2]
[315943617,1709296251819,-500.0,0.00022223,2]
[315943618,1709296251830,-216.87106106,0.00022223,2]
[315943619,1709296251895,-135.45028322,0.00022223,2]
[315943620,1709296251906,-526.08615528,0.00022223,2]
[315943621,1709296252048,-90.44251226,0.00022223,2]
[315943622,1709296252059,-500.0,0.00022223,2]
[315943623,1709296252069,-500.0,0.00022223,2]
[315943624,1709296252079,-390.74921354,0.00022223,2]
[315943625,1709296252089,-500.0,0.00022223,2]
[315943626,1709296252098,-520.3354296,0.00022223,2]
[315943627,1709296252108,-500.0,0.00022223,2]
[315943628,1709296252118,-500.0,0.00022223,2]
[315943629,1709296252127,-500.0,0.00022223,2]
[315943630,1709296252137,-500.0,0.00022223,2]
[315943631,1709296252148,-322.12449312,0.00022223,2]
[315943632,1709296252161,-177.87550688,0.00022223,2]
[315943633,1709296252171,-500.0,0.00022223,2]
[315943634,1709296252181,-500.0,0.00022223,2]
[315943635,1709296252190,-204.9728446,0.00022223,2]
[315943636,1709296371308,-1050.5593775,0.00017576,2]
[315943637,1709296536215,155.0,0.00017576,2]
[315943638,1709296565353,203.0,0.00016577,2]
[315943639,1709296760372,278.56574294,0.00016494,30]
[315943640,1709296819235,-1950.40199103,0.0002,10]
[315943641,1709296956685,505.0,0.0002,10]
[315943642,1709297007196,-155.0,0.00018471,2]
[315943643,1709297007216,-203.0,0.00018472,2]
[315943644,1709297007236,-562.18,0.00019014,2]
[315943645,1709297007256,-183.19285112,0.000199,2]
[315943646,1709297007276,-1221.26940491,0.000199,2]
[315943647,1709297007296,-300.0,0.00019999,2]
[315943648,1709297007319,-150.0,0.00019999,2]
[315943649,1709297007339,-150.0,0.00019999,2]
[315943650,1709297007360,-350.0,0.0002,3]
[315943651,1709297007380,-168365.79836647,0.0002,2]
[315943655,1709297213541,199362.05384472,0.000251,120]
[315943656,1709297274258,303.0,0.00025,120]
[315943657,1709297308034,550976.40611831,0.00025,120]
[315943663,1709297432078,-534.07,0.00018867,2]
[315943664,1709297432088,-183.19285111,0.000199,2]
[315943665,1709297432098,-195.17219106,0.00019999,2]
[315943666,1709297432107,-300.0,0.00019999,2]
[315943667,1709297432117,-1445.40199103,0.0002,10]
[315943668,1709297432126,-155.0,0.00020437,2]
[315943669,1709297432136,-203.0,0.00020438,2]
[315943670,1709297432145,-250.0,0.00020498,2]
[315943671,1709297432155,-1049.14,0.00020748,2]
[315943672,1709297432165,-250.0,0.00020754,2]
[315943673,1709297432174,-172.11,0.00020784,2]
[315943674,1709297432184,-537.65,0.00020857,2]
[315943675,1709297432193,-204.59,0.00020857,2]
[315943676,1709297432203,-6877.56618296,0.00020932,2]
[315943677,1709297432323,-10723.44381704,0.00020932,2]
[315943678,1709297432332,-462.35,0.00021065,2]
[315943679,1709297432341,-692.73,0.00021065,2]
[315943680,1709297432350,-8707.2,0.00021065,2]
[315943681,1709297432359,-1103.68,0.00021096,2]
[315943682,1709297432368,-758.08,0.00021096,2]
[315943683,1709297432378,-534.07,0.0002113,2]
[315943684,1709297432387,-6407.622897,0.00021378,2]
[315943685,1709297432396,-2400.9565,0.00021557,2]
[315943686,1709297432405,-851.60701523,0.00021655,2]
[315943687,1709297432415,-213.55215439,0.00021656,2]
[315943688,1709297432424,-1068.61072934,0.00021817,2]
[315943689,1709297432433,-750.0,0.000219,2]
[315943690,1709297432442,-475.50867405,0.00021917,2]
[315943691,1709297432452,-500.0,0.00021917,2]
[315943692,1709297432461,-500.0,0.00021917,2]
[315943693,1709297432471,-500.0,0.00021917,2]
[315943694,1709297432482,-500.0,0.00021917,2]
[315943695,1709297432492,-500.0,0.00021917,2]
[315943696,1709297432502,-545.76515078,0.00021917,2]
[315943697,1709297432511,-520.99087645,0.00021917,2]
[315943698,1709297432520,-500.0,0.00021917,2]
[315943699,1709297432530,-500.0,0.00021917,2]
[315943700,1709297432539,-500.0,0.00021917,2]
[315943701,1709297432548,-185.97765895,0.00021917,2]
[315943702,1709297432557,-521.16715364,0.00021917,2]
[315943703,1709297432567,-500.0,0.00021917,2]
[315943704,1709297432577,-500.0,0.00021917,2]
[315943705,1709297432586,-500.0,0.00021917,2]
[315943706,1709297432596,-512.85596535,0.00021917,2]
[315943707,1709297432605,-500.0,0.00021917,2]
[315943708,1709297432614,-500.0,0.00021917,2]
[315943709,1709297432624,-500.0,0.00021917,2]
[315943710,1709297432633,-500.0,0.00021917,2]
[315943711,1709297432642,-500.0,0.00021917,2]
[315943712,1709297432651,-500.0,0.00021917,2]
[315943713,1709297432661,-500.0,0.00021917,2]
[315943714,1709297432671,-500.0,0.00021917,2]
[315943715,1709297432681,-198.5872549,0.00021917,2]
[315943716,1709297432691,-500.0,0.00021917,2]
[315943718,1709297432701,-500.0,0.00021917,2]
[315943720,1709297432710,-500.0,0.00021917,2]
[315943722,1709297432720,-643.57769701,0.00021917,2]
[315943723,1709297432730,-500.0,0.00021917,2]
[315943724,1709297432739,-500.0,0.00021917,2]
[315943725,1709297432748,-2546.37,0.00021917,2]
[315943726,1709297432757,-500.0,0.00021917,2]
[315943727,1709297432766,-1253.1,0.00021917,2]
[315943728,1709297432776,-500.0,0.00021917,2]
[315943729,1709297432785,-500.0,0.00021917,2]
[315943730,1709297432795,-500.0,0.00021917,2]
[315943731,1709297432804,-573.31585553,0.00021917,2]
[315943732,1709297432813,-543.72,0.00021917,2]
[315943733,1709297432822,-500.0,0.00021917,2]
[315943734,1709297432832,-500.0,0.00021917,2]
[315943735,1709297432842,-500.0,0.00021917,2]
[315943736,1709297432851,-500.0,0.00021917,2]
[315943737,1709297432867,-500.0,0.00021917,2]
[315943738,1709297432877,-500.0,0.00021917,2]
[315943739,1709297432888,-641.83,0.00021917,2]
[315943740,1709297432898,-500.0,0.00021917,2]
[315943741,1709297432910,-585.22,0.00021917,2]
[315943742,1709297432920,-500.0,0.00021917,2]
[315943743,1709297432929,-500.0,0.00021917,2]
[315943744,1709297432939,-500.0,0.00021917,2]
[315943745,1709297432949,-1298.84,0.00021917,2]
[315943746,1709297432959,-500.0,0.00021917,2]
[315943747,1709297432969,-500.0,0.00021917,2]
[315943748,1709297432982,-500.0,0.00021917,2]
[315943749,1709297432991,-500.0,0.00021917,2]
[315943750,1709297433001,-500.0,0.00021917,2]
[315943751,1709297433010,-1240.04,0.00021917,2]
[315943752,1709297433019,-1005.28,0.00021917,2]
[315943753,1709297433029,-500.0,0.00021917,2]
[315943754,1709297433038,-7475.08119299,0.00021917,2]
[315943755,1709297433065,-2315.87880701,0.00021917,2]
[315943756,1709297433075,-592.99,0.00021917,2]
[315943757,1709297433085,-500.0,0.00021917,2]
[315943758,1709297433094,-500.0,0.00021917,2]
[315943759,1709297433103,-500.0,0.00021917,2]
[315943760,1709297433113,-527.68,0.00021917,2]
[315943761,1709297433122,-500.0,0.00021917,2]
[315943762,1709297433131,-500.0,0.00021917,2]
[315943763,1709297433142,-1695.11,0.00021917,2]
[315943764,1709297433151,-506.51558676,0.00021917,2]
[315943765,1709297433161,-500.0,0.00021917,2]
[315943766,1709297433170,-500.0,0.00021917,2]
[315943767,1709297433180,-500.0,0.00021917,2]
[315943768,1709297433189,-500.0,0.00021917,2]
[315943769,1709297433198,-500.0,0.00021917,2]
[315943770,1709297433208,-500.0,0.00021917,2]
[315943771,1709297433217,-556.2,0.00021917,2]
[315943772,1709297433226,-500.0,0.00021917,2]
[315943773,1709297433238,-761.85,0.00021917,2]
[315943774,1709297433247,-500.0,0.00021917,2]
[315943775,1709297433257,-500.0,0.00021917,2]
[315943776,1709297433266,-500.0,0.00021917,2]
[315943777,1709297433277,-500.0,0.00021917,2]
[315943778,1709297433286,-500.0,0.00021917,2]
[315943779,1709297433295,-500.0,0.00021917,2]
[315943780,1709297433305,-500.0,0.00021917,2]
[315943781,1709297433314,-500.0,0.00021917,2]
[315943782,1709297433323,-683.85,0.00021917,2]
[315943783,1709297433334,-504.91952129,0.00021917,2]
[315943784,1709297433343,-500.0,0.00021917,2]
[315943785,1709297433352,-500.0,0.00021917,2]
[315943786,1709297433361,-500.0,0.00021917,2]
[315943787,1709297433371,-500.0,0.00021917,2]
[315943788,1709297433381,-500.0,0.00021917,2]
[315943789,1709297433390,-500.0,0.00021917,2]
[315943790,1709297433399,-500.0,0.00021917,2]
[315943791,1709297433409,-500.0,0.00021917,2]
[315943792,1709297433418,-500.0,0.00021917,2]
[315943793,1709297433428,-500.0,0.00021917,2]
[315943794,1709297433438,-500.0,0.00021917,2]
[315943795,1709297433447,-500.0,0.00021917,2]
[315943796,1709297433457,-549.46,0.00021917,2]
[315943797,1709297433466,-500.0,0.00021917,2]
[315943798,1709297433475,-500.0,0.00021917,2]
[315943799,1709297433487,-685.87,0.00021917,2]
[315943800,1709297433496,-500.0,0.00021917,2]
[315943801,1709297433506,-942.29,0.00021917,2]
[315943802,1709297433516,-500.0,0.00021917,2]
[315943803,1709297433526,-500.0,0.00021917,2]
[315943804,1709297433535,-1259.5,0.00021917,2]
[315943805,1709297433545,-500.0,0.00021917,2]
[315943806,1709297433555,-500.0,0.00021917,2]
[315943807,1709297433565,-500.0,0.00021917,2]
[315943808,1709297433574,-500.0,0.00021917,2]
[315943809,1709297433585,-500.0,0.00021917,2]
[315943810,1709297433594,-500.0,0.00021917,2]
[315943811,1709297433604,-1909.52,0.00021917,2]
[315943812,1709297433614,-613.35,0.00021917,2]
[315943813,1709297433624,-4779.84,0.00021917,2]
[315943814,1709297433633,-500.0,0.00021917,2]
[315943815,1709297433642,-500.0,0.00021917,2]
[315943816,1709297433652,-655.46,0.00021917,2]
[315943817,1709297433661,-332.22726882,0.00021917,2]
[315943818,1709297433753,-167.77273118,0.00021917,2]
[315943819,1709297433762,-500.0,0.00021917,2]
[315943820,1709297433772,-1063.05,0.00021917,2]
[315943821,1709297433782,-500.0,0.00021917,2]
[315943822,1709297433791,-500.0,0.00021917,2]
[315943823,1709297433801,-500.0,0.00021917,2]
[315943824,1709297433811,-500.0,0.00021917,2]
[315943825,1709297433820,-500.0,0.00021917,2]
[315943826,1709297433830,-500.0,0.00021917,2]
[315943827,1709297433839,-500.0,0.00021917,2]
[315943828,1709297433848,-743.3,0.00021917,2]
[315943829,1709297433859,-500.0,0.00021917,2]
[315943830,1709297433871,-500.0,0.00021917,2]
[315943831,1709297433881,-500.0,0.00021917,2]
[315943832,1709297433890,-2062.63,0.00021917,2]
[315943833,1709297433901,-500.0,0.00021917,2]
[315943834,1709297433910,-1078.28,0.00021917,2]
[315943835,1709297433919,-500.0,0.00021917,2]
[315943836,1709297433928,-238.45168513,0.00021917,2]
[315943843,1709297438017,-261.54831487,0.00021917,2]
[315943844,1709297438032,-500.0,0.00021917,2]
[315943845,1709297438042,-500.0,0.00021917,2]
[315943846,1709297438051,-500.0,0.00021917,2]
[315943847,1709297438060,-500.0,0.00021917,2]
[315943848,1709297438070,-500.0,0.00021917,2]
[315943849,1709297438079,-500.0,0.00021917,2]
[315943850,1709297438089,-559.17093028,0.00021917,2]
[315943851,1709297438098,-500.0,0.00021917,2]
[315943852,1709297438107,-500.0,0.00021917,2]
[315943853,1709297438117,-500.0,0.00021917,2]
[315943854,1709297438126,-500.0,0.00021917,2]
[315943855,1709297438135,-500.0,0.00021917,2]
[315943856,1709297438145,-500.0,0.00021917,2]
[315943857,1709297438154,-500.0,0.00021917,2]
[315943858,1709297438163,-500.0,0.00021917,2]
[315943859,1709297438173,-500.0,0.00021917,2]
[315943860,1709297438182,-500.0,0.00021917,2]
[315943861,1709297438192,-581.26,0.00021917,2]
[315943862,1709297438201,-1038.08,0.00021917,2]
[315943863,1709297438211,-500.0,0.00021917,2]
[315943864,1709297438221,-500.0,0.00021917,2]
[315943865,1709297438232,-500.0,0.00021917,2]
[315943866,1709297438241,-500.0,0.00021917,2]
[315943867,1709297438250,-500.0,0.00021917,2]
[315943868,1709297438259,-500.0,0.00021917,2]
[315943869,1709297438269,-500.0,0.00021917,2]
[315943870,1709297438279,-500.0,0.00021917,2]
[315943871,1709297438288,-500.0,0.00021917,2]
[315943872,1709297438298,-971.82,0.00021917,2]
[315943873,1709297438307,-982.49,0.00021917,2]
[315943874,1709297438317,-500.0,0.00021917,2]
[315943875,1709297438326,-500.0,0.00021917,2]
[315943876,1709297438335,-500.0,0.00021917,2]
[315943877,1709297438344,-500.0,0.00021917,2]
[315943878,1709297438353,-500.0,0.00021917,2]
[315943879,1709297438362,-500.0,0.00021917,2]
[315943880,1709297438371,-500.0,0.00021917,2]
[315943881,1709297438381,-539.44,0.00021917,2]
[315943882,1709297438390,-765.61,0.00021917,2]
[315943883,1709297438399,-500.0,0.00021917,2]
[315943884,1709297438409,-500.0,0.00021917,2]
[315943885,1709297438418,-500.0,0.00021917,2]
[315943886,1709297438428,-500.0,0.00021917,2]
[315943887,1709297438437,-500.0,0.00021917,2]
[315943888,1709297438445,-500.0,0.00021917,2]
[315943889,1709297438455,-500.0,0.00021917,2]
[315943890,1709297438467,-992.52,0.00021917,2]
[315943891,1709297438477,-1235.69,0.00021917,2]
[315943892,1709297438488,-500.0,0.00021917,2]
[315943893,1709297438498,-500.0,0.00021917,2]
[315943894,1709297438507,-1069.19,0.00021917,2]
[315943895,1709297438517,-500.0,0.00021917,2]
[315943896,1709297438527,-500.0,0.00021917,2]
[315943897,1709297438536,-4029.43,0.00021917,2]
[315943898,1709297438545,-411.06118953,0.00021917,2]
[315943899,1709297438555,-500.0,0.00021917,2]
[315943900,1709297438564,-500.0,0.00021917,2]
[315943901,1709297438573,-1478.18,0.00021917,2]
[315943902,1709297438582,-500.0,0.00021917,2]
[315943903,1709297438592,-500.0,0.00021917,2]
[315943904,1709297438601,-1822.23,0.00021917,2]
[315943905,1709297438611,-500.0,0.00021917,2]
[315943906,1709297438621,-2789.67,0.00021917,2]
[315943907,1709297438630,-500.0,0.00021917,2]
[315943908,1709297438639,-1132.81,0.00021917,2]
[315943909,1709297438648,-621.28,0.00021917,2]
[315943910,1709297438658,-500.0,0.00021917,2]
[315943911,1709297438667,-500.0,0.00021917,2]
[315943912,1709297438676,-500.0,0.00021917,2]
[315943913,1709297438685,-500.0,0.00021917,2]
[315943914,1709297438694,-530.07,0.00021917,2]
[315943915,1709297438704,-4007.87,0.00021917,2]
[315943916,1709297438713,-500.0,0.00021917,2]
[315943917,1709297438723,-500.0,0.00021917,2]
[315943918,1709297438734,-4775.74,0.00021917,2]
[315943919,1709297438743,-500.0,0.00021917,2]
[315943920,1709297438752,-500.0,0.00021917,2]
[315943921,1709297438761,-500.0,0.00021917,2]
[315943922,1709297438771,-500.0,0.00021917,2]
[315943923,1709297438780,-1085.68,0.00021917,2]
[315943924,1709297438789,-500.0,0.00021917,2]
[315943925,1709297438799,-500.0,0.00021917,2]
[315943926,1709297438808,-500.0,0.00021917,2]
[315943927,1709297438817,-500.0,0.00021917,2]
[315943928,1709297438826,-500.0,0.00021917,2]
[315943929,1709297438835,-500.0,0.00021917,2]
[315943930,1709297438845,-1262.68,0.00021917,2]
[315943931,1709297438854,-158.15,0.00021918,2]
[315943932,1709297438863,-156.06,0.00021918,2]